bitfinex-derivatives/quotes_ETHF0:USTF0_20260226
["timestamp","ask_amount","ask_price","bid_price","bid_amount"]
[1772085401515,0.66450104,2068.3,2067.4,2.20787069]
[1772085401711,0.66450104,2068.4,2067.7,1.02867071]
[1772085401912,1.84165241,2068.6,2067.7,1.02867071]
[1772085402912,0.66245243,2068.6,2067.7,1.02867071]
[1772085403114,0.66546292,2068.7,2067.9,1.02867071]
[1772085404215,1.83909152,2068.6,2067.9,1.02867071]
[1772085404411,0.65989154,2068.5,2067.9,1.02867071]
[1772085404608,1.83709808,2068.6,2067.9,1.02867071]
[1772085407317,0.0047516,2068.7,2068.1,1.02867071]
[1772085407713,0.64874835,2068.7,2068.1,1.02867071]
[1772085408916,0.0047516,2068.7,2068.1,1.02867071]
[1772085416021,0.62024995,2068.1,2067.0,0.99248557]
[1772085416228,0.62024995,2067.5,2067.0,0.99248557]
[1772085416421,1.17919998,2067.6,2067.0,0.99248557]
[1772085416625,0.62024995,2067.7,2067.0,0.99248557]
[1772085417026,7.764,2068.0,2067.2,0.98656886]
[1772085417229,0.61607907,2067.9,2067.2,0.98656886]
[1772085417922,40.8,2068.2,2067.2,0.98656886]
[1772085418126,0.61154387,2068.3,2067.2,0.98656886]
[1772085421029,0.0047516,2068.7,2067.2,0.98656886]
[1772085421232,0.60718519,2068.7,2067.2,0.98656886]
[1772085424225,0.60718519,2068.7,2067.0,6.71e-06]
[1772085424226,0.60919374,2067.8,2067.0,6.71e-06]
[1772085424423,0.60919374,2067.6,2066.7,0.98656886]
[1772085425027,0.6050146,2067.4,2066.6,0.98656886]
[1772085425528,0.6050146,2067.4,2066.5,0.98656886]
[1772085425730,0.60535244,2067.2,2066.5,0.98656886]
[1772085426631,0.62389744,2067.1,2066.5,0.99212102]
[1772085428231,0.62389744,2067.1,2066.3,0.98656886]
[1772085428433,0.60888299,2067.0,2066.3,0.98656886]
[1772085428836,0.60489656,2067.1,2066.3,0.98656886]
[1772085429331,0.00370053,2067.2,2066.3,0.99248817]
[1772085432132,0.64319839,2066.5,2065.1,10.0455556]
[1772085432331,0.64319839,2066.5,2064.3,5.9582]
[1772085432332,0.64319839,2066.1,2065.2,0.98656886]
[1772085433137,0.64319839,2066.1,2065.2,0.9916494]
[1772085437741,41.4243243,2066.3,2065.2,0.9916494]
[1772085438043,0.6243243,2066.5,2065.2,0.9916494]
[1772085441740,5.95337,2066.0,2064.4,0.98656886]
[1772085441945,0.60839879,2065.2,2064.4,0.98656886]
[1772085442844,0.61417939,2065.2,2064.4,0.99178972]
[1772085443144,0.61417939,2065.2,2064.3,0.98656886]
[1772085444148,0.61417939,2065.2,2064.3,0.99190918]
[1772085444849,0.97988391,2065.0,2064.3,0.99190918]
[1772085446748,0.89461787,2065.2,2064.3,0.99190918]
[1772085447444,0.0057806,2065.2,2064.3,0.99190918]
[1772085450953,0.88883727,2065.6,2064.3,0.99190918]
[1772085451252,1.76857862,2065.7,2064.3,0.99190918]
[1772085451749,2.65741589,2065.7,2064.3,0.99190918]
[1772085452150,2.66257135,2065.7,2064.3,0.99190918]
[1772085452350,0.88883727,2065.6,2064.3,0.99190918]
[1772085454854,0.00515546,2065.7,2064.5,0.89073519]
[1772085455054,0.00515546,2065.7,2064.6,0.89073519]
[1772085455254,0.85475334,2065.7,2064.6,0.89073519]
[1772085456052,0.85475334,2065.7,2064.7,6.34]
[1772085456354,0.85475334,2065.7,2064.8,0.89073519]
[1772085457849,0.00515546,2065.7,2064.8,0.89073519]
[1772085458755,0.84959788,2065.6,2064.8,0.89073519]
[1772085465454,0.00515546,2065.7,2064.8,0.89073519]
[1772085465646,0.84959788,2066.3,2065.2,0.89073519]
[1772085465847,0.84959788,2066.8,2065.4,0.89073519]
[1772085466057,0.84959788,2066.6,2065.4,0.89073519]
[1772085466654,0.85300255,2066.6,2065.4,0.89073519]
[1772085467657,0.85300255,2066.6,2065.5,0.89073519]
[1772085475464,0.00340467,2066.6,2065.5,0.89073519]
[1772085476866,0.84696042,2066.6,2065.5,0.89073519]
[1772085482975,0.84696042,2066.6,2065.6,0.901736]
[1772085493290,0.84355575,2066.4,2065.6,0.901736]
[1772085501394,0.84355575,2066.3,2065.6,0.901736]
[1772085511502,0.84355575,2066.3,2065.7,0.86727914]
[1772085512402,0.83703265,2066.4,2065.7,0.86727914]
[1772085514604,0.83703265,2066.4,2065.8,0.84299577]
[1772085514807,0.83703265,2066.4,2065.8,0.84746492]
[1772085516010,0.80024542,2066.2,2065.8,0.84746492]
[1772085516212,0.80024542,2066.5,2065.8,0.84746492]
[1772085516505,0.80024542,2066.3,2065.8,0.84746492]
[1772085522009,0.80024542,2066.3,2065.8,0.00446915]
[1772085522214,0.80024542,2066.3,2065.8,0.84746492]
[1772085526113,0.80024542,2066.3,2065.8,0.00446915]
[1772085527018,0.80024542,2066.3,2065.8,0.84746492]
[1772085534218,0.80365009,2066.6,2065.8,0.84746492]
[1772085534422,6.48264102,2066.5,2065.8,0.84746492]
[1772085534719,6.48264102,2066.4,2065.8,0.84746492]
[1772085534921,0.80024542,2066.4,2065.8,0.84746492]
[1772085536520,0.81594046,2066.1,2065.7,6.341]
[1772085536719,0.81594046,2066.1,2065.7,7.11542278]
[1772085536919,0.81594046,2066.1,2065.8,0.77442278]
[1772085537620,0.81594046,2066.1,2065.8,0.7790914]
[1772085539826,0.81594046,2066.1,2065.8,6.341]
[1772085540026,0.81594046,2066.1,2065.8,7.11542278]
[1772085540728,0.81594046,2066.1,2065.8,7.1208489]
[1772085541226,1.99657542,2066.0,2065.6,0.77442278]
[1772085541430,0.81594046,2065.9,2065.5,0.77442278]
[1772085542330,0.81594046,2065.9,2065.5,0.77944723]
[1772085546239,0.81594046,2066.3,2065.6,0.77442278]
[1772085549533,1.99657542,2066.3,2065.6,0.77442278]
[1772085549736,0.81594046,2066.2,2065.7,7.11542278]
[1772085550036,0.81594046,2066.2,2065.8,0.77442278]
[1772085556947,6.01393387,2066.6,2065.8,0.77442278]
[1772085556948,0.81594046,2066.3,2065.8,0.77442278]
[1772085557741,0.81594046,2066.5,2065.8,0.77442278]
[1772085557940,5.69332513,2066.4,2065.8,0.77442278]
[1772085558147,0.81594046,2066.5,2065.8,0.77442278]
[1772085558346,5.69291683,2066.4,2065.8,0.77442278]
[1772085558540,0.81594046,2066.5,2065.8,0.77442278]
[1772085558746,5.69291683,2066.4,2065.8,0.77442278]
[1772085558943,0.81594046,2066.4,2065.8,0.77442278]
[1772085581466,0.67259062,2066.6,2065.8,0.77442278]
[1772085581666,6.3511923,2066.5,2065.8,0.77442278]
[1772085581864,0.66918595,2066.5,2065.8,0.77442278]
[1772085582466,0.67259062,2066.6,2065.8,0.77442278]
[1772085582963,0.66918595,2066.4,2065.8,0.77442278]
[1772085591972,0.00340467,2066.6,2065.8,1.95505048]
[1772085592279,0.67259062,2066.6,2065.9,0.70001159]
[1772085596287,0.00340467,2066.6,2065.9,0.70001159]
[1772085596684,0.6781494,2066.6,2065.9,0.70001159]
[1772085602392,0.6781494,2066.6,2066.0,6.341]
[1772085602890,0.6781494,2066.6,2065.5,0.00502445]
[1772085602891,0.67474473,2066.2,2065.5,0.00502445]
[1772085603086,0.67474473,2066.2,2065.5,0.6504972]
[1772085603289,0.67474473,2066.3,2065.5,0.6504972]
[1772085604787,0.67474473,2066.3,2065.6,6.341]
[1772085605890,0.67474473,2066.3,2065.6,6.98647275]
[1772085606393,0.67474473,2066.3,2065.6,6.341]
[1772085606593,0.67474473,2066.3,2065.6,6.98647275]
[1772085606792,0.67474473,2066.3,2065.7,0.64547275]
[1772085615300,0.67474473,2066.3,2065.7,6.341]
[1772085616798,0.67474473,2066.3,2065.5,0.00502445]
[1772085617106,0.67474473,2066.3,2065.2,0.64547275]
[1772085617107,0.67474473,2065.7,2065.2,0.64547275]
[1772085617403,0.67474473,2065.7,2065.2,6.98647275]
[1772085617804,0.67474473,2065.7,2065.3,0.64547275]
[1772085618006,0.67474473,2066.2,2065.3,0.64547275]
[1772085618199,0.67474473,2066.0,2065.3,0.6508009]
[1772085620103,0.67474473,2065.8,2064.9,6.98647275]
[1772085620308,0.67474473,2065.8,2065.0,0.64547275]
[1772085621202,0.67474473,2065.8,2065.0,0.65128959]
[1772085623005,0.67474473,2065.8,2065.0,0.00581684]
[1772085623314,0.67474473,2065.8,2064.0,1.1806277]
[1772085623315,0.67474473,2065.5,2064.6,0.64547275]
[1772085624111,0.67474473,2065.5,2064.6,0.65019574]
[1772085625106,0.67474473,2065.2,2064.6,0.00472299]
[1772085626318,0.67474473,2065.2,2064.6,0.64434852]
[1772085627213,5.95372,2065.9,2064.6,0.64434852]
[1772085627214,0.60190124,2065.6,2064.6,0.64434852]
[1772085627417,1.26489624,2066.4,2064.7,0.63962553]
[1772085627418,0.60190124,2065.9,2064.7,0.63962553]
[1772085628117,0.60190124,2065.9,2065.0,0.63962553]
[1772085628315,0.60190124,2065.9,2065.2,0.63962553]
[1772085628616,0.60190124,2066.3,2065.3,0.63962553]
[1772085631018,0.60190124,2066.3,2065.3,6.98062553]
[1772085631217,0.60190124,2066.3,2065.4,0.63962553]
[1772085636321,0.65434701,2066.1,2065.4,0.63962553]
[1772085640320,0.65434701,2066.4,2065.8,0.60823469]
[1772085641923,0.65434701,2066.2,2065.8,0.60823469]
[1772085644025,0.65434701,2066.4,2065.8,0.60823469]
[1772085655730,0.65434701,2066.0,2065.6,0.63712217]
[1772085656334,0.58888147,2065.9,2065.4,0.63712217]
[1772085658027,1.18101227,2065.5,2064.6,0.00472299]
[1772085658235,1.18101227,2065.5,2064.6,0.64440554]
[1772085658236,1.18101227,2065.3,2064.6,0.64440554]
[1772085660541,1.18101227,2064.9,2064.0,0.64376876]
[1772085660746,1.18101227,2065.1,2064.1,0.64376876]
[1772085661643,1.18719074,2065.1,2064.1,0.64954095]
[1772085663142,1.18101227,2064.5,2064.1,0.64954095]
[1772085663443,0.58888147,2064.3,2063.6,0.63712217]
[1772085664241,0.58888147,2064.1,2063.6,0.64131981]
[1772085664748,0.58888147,2063.9,2063.6,0.00419764]
[1772085665340,0.58888147,2063.9,2062.9,0.63712217]
[1772085666447,0.58888147,2063.9,2062.9,0.64242481]
[1772085668242,0.58888147,2063.9,2062.9,0.00530264]
[1772085668446,0.58888147,2063.9,2062.9,0.64242481]
[1772085669948,0.57491559,2063.5,2062.4,0.63712217]
[1772085670155,0.57491559,2063.2,2061.7,0.63712217]
[1772085670956,0.58004564,2063.2,2061.7,0.64273191]
[1772085672448,0.57834317,2062.9,2061.7,0.64273191]
[1772085673051,0.5775679,2062.8,2061.7,0.64273191]
[1772085673955,0.57677837,2062.7,2061.7,0.64273191]
[1772085675852,0.57042604,2062.6,2061.7,0.00560974]
[1772085676558,0.5642206,2062.3,2060.7,0.63712217]
[1772085676757,6.20536,2062.7,2060.8,0.63712217]
[1772085676758,0.5642206,2062.1,2060.8,0.63712217]
[1772085677057,0.56345668,2062.3,2060.9,0.63712217]
[1772085677450,0.56345668,2062.3,2060.9,0.64121457]
[1772085677855,0.56345668,2062.3,2061.1,0.63712217]
[1772085681059,0.56201299,2062.7,2061.3,0.63712217]
[1772085681352,0.56201299,2062.7,2061.4,6.97912217]
[1772085681554,0.56201299,2062.7,2061.5,0.63712217]
[1772085682158,0.56143014,2062.9,2061.7,0.63712217]
[1772085683655,0.56004629,2063.1,2061.7,0.63712217]
[1772085687477,0.56385719,2063.0,2061.7,0.63712217]
[1772085693362,0.56385719,2063.0,2061.8,0.24249]
[1772085693558,0.56343549,2063.1,2061.9,0.57428805]
[1772085693760,0.56343549,2063.1,2062.1,0.57428805]
[1772085693961,0.56796994,2063.2,2062.1,0.57428805]
[1772085696369,0.00513005,2063.2,2062.1,0.57428805]
[1772085696570,0.00513005,2063.2,2062.3,0.57428805]
[1772085696765,0.57450803,2063.5,2062.3,0.57428805]
[1772085697873,0.57987987,2063.5,2062.3,0.57428805]
[1772085699874,0.00537184,2063.5,2062.5,0.57428805]
[1772085700075,0.00537184,2063.5,2062.7,0.57428805]
[1772085702873,0.56334848,2063.5,2062.7,0.57428805]
[1772085704974,0.5563348,2063.0,2061.5,0.57428805]
[1772085705179,0.55630789,2062.7,2061.5,0.57428805]
[1772085705470,0.55630789,2062.5,2060.8,0.57428805]
[1772085705668,0.55630789,2062.3,2060.8,0.57428805]
[1772085705868,0.55630789,2062.3,2060.8,0.57871045]
[1772085721382,0.55630789,2062.3,2061.0,0.55717916]
[1772085723882,0.55630789,2062.3,2061.2,0.55717916]
[1772085725386,0.52759229,2062.5,2061.4,0.55717916]
[1772085726783,0.53104622,2062.7,2061.4,0.55717916]
[1772085726991,0.53104622,2062.7,2061.2,5.96707]
[1772085726992,0.53104622,2062.7,2061.6,0.55717916]
[1772085727586,0.53101322,2063.0,2061.6,0.55717916]
[1772085732887,0.56360177,2062.8,2061.7,0.55717916]
[1772085734191,0.56366045,2062.6,2061.7,0.55717916]
[1772085734495,0.56366045,2062.9,2061.7,0.55717916]
[1772085735689,0.56366045,2062.9,2061.9,0.55717916]
[1772085737289,0.56087541,2062.7,2061.9,0.55717916]
[1772085739799,0.55703093,2062.5,2061.2,0.55717916]
[1772085740001,0.55638174,2062.3,2061.2,0.55717916]
[1772085745101,0.53570192,2062.5,2061.2,0.55717916]
[1772085746509,0.53335008,2062.7,2061.2,0.55717916]
[1772085747312,0.53272434,2062.5,2061.2,0.55717916]
[1772085750915,0.53272434,2062.5,2061.4,0.58946422]
[1772085751815,0.53458605,2062.3,2061.4,0.58946422]
[1772085759824,0.52572735,2062.5,2061.4,0.58946422]
[1772085760121,0.52572735,2062.3,2061.4,0.58946422]
[1772085767931,0.49654748,2062.1,2061.4,0.58946422]
[1772085769031,4.05117859,2062.5,2061.4,0.58946422]
[1772085769232,0.49610004,2062.6,2061.5,0.60278704]
[1772085769632,0.49610004,2062.4,2061.6,0.60278704]
[1772085770727,0.49583241,2062.2,2061.4,0.60278704]
[1772085773933,6.2011092,2062.1,2061.4,0.60278704]
[1772085774133,0.49018373,2062.1,2061.4,0.60278704]
[1772085777239,1.67595283,2062.1,2061.4,0.60278704]
[1772085778035,4.05117859,2062.5,2061.4,0.60278704]
[1772085778240,4.05117859,2062.5,2061.7,0.57655198]
[1772085778241,0.55357261,2062.3,2061.7,0.57655198]
[1772085779242,0.55357261,2062.2,2061.7,0.57655198]
[1772085779542,0.55357261,2062.0,2061.6,0.57655198]
[1772085779738,0.55724006,2062.0,2061.6,0.57655198]
[1772085781039,0.55357261,2061.8,2061.4,0.57655198]
[1772085781540,0.55357261,2061.4,2061.0,0.57655198]
[1772085785142,0.55357261,2061.9,2061.0,0.57655198]
[1772085787445,0.00366745,2062.0,2061.0,0.57655198]
[1772085787643,0.55724006,2062.0,2061.0,0.57655198]
[1772085789144,0.55724006,2062.0,2060.8,6.3504224]
[1772085789145,0.55724006,2062.0,2061.1,6.92255198]
[1772085790245,0.55724006,2062.0,2061.1,0.57655198]
[1772085790449,5.70021219,2061.9,2060.9,6.92255198]
[1772085790748,0.55357261,2061.8,2060.9,6.92255198]
[1772085790946,0.55357261,2061.8,2061.0,0.57655198]
[1772085802154,0.55357261,2061.8,2060.9,6.92255198]
[1772085802355,0.55357261,2061.8,2061.0,0.57655198]
[1772085803258,0.55357261,2061.8,2060.9,0.57655198]
[1772085804859,0.55357261,2061.8,2060.8,0.58097438]
[1772085805049,5.70720513,2061.7,2060.8,0.58097438]
[1772085805255,0.55357261,2061.6,2060.8,0.58097438]
[1772085806258,0.55357261,2061.6,2060.8,0.0044224]
[1772085806462,0.56025862,2061.4,2060.8,0.0044224]
[1772085807257,0.56025862,2061.4,2060.4,0.54338364]
[1772085808160,0.56025862,2061.2,2060.2,0.54338364]
[1772085808366,0.56025862,2061.2,2060.2,0.54870167]
[1772085813374,0.56025862,2061.2,2060.5,0.54338364]
[1772085814075,0.55750125,2061.3,2060.7,0.56872163]
[1772085814276,0.55750125,2061.5,2060.9,0.56872163]
[1772085814783,0.55750125,2061.6,2060.9,0.56872163]
[1772085815974,0.55750125,2061.9,2060.9,0.56872163]
[1772085819180,0.5611687,2062.0,2060.9,0.56872163]
[1772085820381,0.5611687,2062.0,2061.0,0.56872163]
[1772085822785,0.00366745,2062.0,2061.2,0.56872163]
[1772085822985,0.5611687,2062.0,2061.2,0.56872163]
[1772085824387,0.5611687,2062.0,2061.0,0.56872163]
[1772085826489,0.5611687,2062.0,2060.8,0.56872163]
[1772085826689,0.55750125,2061.8,2060.8,0.56872163]
[1772085828691,0.55750125,2061.6,2060.3,0.56872163]
[1772085834996,0.55750125,2061.6,2060.5,0.56872163]
[1772085836295,0.56933628,2061.2,2060.5,0.56872163]
[1772085836689,0.56933628,2061.2,2060.2,0.00531803]
[1772085836895,0.56933628,2061.2,2060.4,0.57665194]
[1772085845098,0.56933628,2061.8,2061.0,0.57665194]
[1772085845299,0.56933628,2061.8,2061.2,0.57665194]
[1772085845700,0.56933628,2061.9,2061.2,0.57665194]
[1772085853299,0.00366745,2062.0,2061.3,0.57665194]
[1772085853500,0.56933628,2062.3,2061.3,0.57665194]
[1772085854100,0.56933628,2062.5,2061.5,0.57665194]
[1772085854403,0.00436371,2062.5,2061.7,0.57665194]
[1772085854704,0.00436371,2062.5,2061.7,0.58025364]
[1772085855201,6.0105292,2063.6,2061.7,0.58025364]
[1772085855202,0.56933628,2062.8,2061.7,0.58025364]
[1772085855806,0.56933628,2063.4,2061.9,0.57665194]
[1772085856201,0.57546934,2063.4,2061.9,0.57665194]
[1772085860810,0.56933628,2063.2,2061.8,0.57665194]
[1772085862006,0.56933628,2063.0,2061.8,0.57665194]
[1772085871914,0.53469889,2062.9,2061.8,0.57665194]
[1772085876223,0.53469889,2062.9,2061.9,0.57352636]
[1772085882230,0.53469889,2062.9,2062.0,0.57352636]
[1772085883229,0.57213616,2063.1,2062.2,0.57352636]
[1772085883526,0.57213616,2063.1,2062.4,0.57352636]
[1772085884932,0.57213616,2062.9,2061.9,6.349]
[1772085885435,0.57213616,2062.6,2061.7,0.0036017]
[1772085886932,0.57213616,2062.6,2061.7,0.57712806]
[1772085900637,0.58397655,2062.8,2061.8,0.55359348]
[1772085900834,0.58397655,2062.8,2061.9,0.55359348]
[1772085901036,0.58397655,2062.8,2062.1,0.55359348]
[1772085901633,0.58397655,2063.3,2062.1,0.55359348]
[1772085901836,0.58397655,2063.1,2062.1,0.55359348]
[1772085903041,0.58397655,2062.9,2062.1,0.55359348]
[1772085906247,0.58397655,2063.2,2062.1,0.55359348]
[1772085907241,0.59010961,2063.4,2062.2,0.55359348]
[1772085907541,0.59010961,2063.4,2062.3,0.55359348]
[1772085910340,0.59010961,2063.4,2062.4,6.349]
[1772085910635,0.59010961,2063.4,2062.5,0.55359348]
[1772085910636,0.00613306,2063.4,2062.5,0.55359348]
[1772085911142,0.59010961,2063.4,2062.5,0.55359348]
[1772085913842,0.00613306,2063.4,2062.5,0.55359348]
[1772085917546,0.58397655,2063.6,2062.7,0.55359348]
[1772085917746,0.58397655,2063.9,2062.9,0.24236]
[1772085918045,0.58397655,2064.1,2063.1,0.55359348]
[1772085918549,0.5882371,2064.1,2063.1,0.55359348]
[1772085921249,0.5882371,2064.1,2063.2,6.90259348]
[1772085921450,0.5882371,2064.1,2063.2,6.90873659]
[1772085922151,0.5882371,2064.1,2063.3,0.55359348]
[1772085923451,0.5882371,2064.1,2063.2,6.35514311]
[1772085925658,0.5882371,2064.1,2063.2,6.90873659]
[1772085926059,0.5882371,2064.1,2063.3,0.5706911]
[1772085931460,0.00426055,2064.1,2063.3,0.5706911]
[1772085931760,0.55172961,2064.1,2063.3,0.5706911]
[1772085932459,0.00426055,2064.1,2063.3,0.5706911]
[1772085934260,0.53147855,2064.9,2063.5,0.56177947]
[1772085934461,0.53147855,2064.8,2063.5,0.56177947]
[1772085934958,0.53147855,2064.8,2063.6,0.56177947]
[1772085935157,0.53561017,2064.8,2063.6,0.56177947]
[1772085935553,0.00413162,2064.8,2063.7,0.56177947]
[1772085935762,15.95643026,2065.4,2064.0,0.56177947]
[1772085935763,0.53147855,2065.2,2064.0,0.56177947]
[1772085935964,0.53147855,2065.2,2064.0,8.14604298]
[1772085936165,0.53147855,2065.8,2064.3,0.56177947]
[1772085936367,0.53147855,2065.6,2064.5,0.56177947]
[1772085936768,0.53487663,2065.6,2064.5,0.56177947]
[1772085939467,0.53147855,2065.9,2064.9,0.56177947]
[1772085939672,0.53147855,2065.9,2065.1,0.56177947]
[1772085940471,0.53714097,2065.9,2065.1,0.56590222]
[1772085940671,0.00566242,2065.9,2065.1,0.56590222]
[1772085941374,0.53714097,2065.9,2065.1,0.56590222]
[1772085942264,0.00566242,2065.9,2065.1,0.56590222]
[1772085943570,0.53714097,2065.9,2065.1,0.00412275]
[1772085944064,2.31521632,2065.9,2065.1,0.00412275]
[1772085944269,0.53147855,2065.8,2064.7,6.90877947]
[1772085944475,0.53147855,2065.8,2064.8,0.56177947]
[1772085945272,0.53147855,2065.8,2064.8,0.56621161]
[1772085948376,0.53147855,2065.8,2064.8,0.00443214]
[1772085949776,0.53147855,2065.8,2064.8,0.56621161]
[1772085962881,0.00566242,2065.9,2064.8,0.56621161]
[1772085963189,0.56246925,2066.4,2065.2,0.54102729]
[1772085963383,0.56246925,2066.2,2065.2,0.54102729]
[1772085964084,0.56685037,2066.2,2065.2,0.54102729]
[1772085964284,0.56246925,2066.0,2065.2,0.54102729]
[1772085970186,0.56246925,2065.8,2065.0,0.54102729]
[1772085971186,0.56246925,2065.6,2064.6,0.54102729]
[1772085971384,0.56246925,2065.4,2064.6,0.54102729]
[1772085972190,0.56246925,2065.4,2064.6,0.54465112]
[1772085972792,0.56246925,2065.8,2064.6,0.54465112]
[1772085972988,0.56246925,2065.6,2064.6,0.54465112]
[1772085973388,0.56246925,2065.6,2064.7,0.54102729]
[1772085975284,4.05337189,2066.1,2064.7,0.54102729]
[1772085975491,0.56246925,2065.7,2064.7,0.54102729]
[1772085976389,0.56246925,2066.0,2064.7,0.54102729]
[1772085976692,0.56246925,2065.8,2064.7,0.54102729]
[1772085978692,0.56246925,2065.8,2064.9,0.54102729]
[1772085978894,0.56246925,2066.1,2064.9,0.54102729]
[1772085982793,0.56246925,2065.9,2065.1,0.54102729]
[1772085984290,0.56246925,2065.9,2064.6,0.00362383]
[1772085984488,0.56246925,2065.7,2064.7,0.54102729]
[1772085989097,0.52544613,2065.5,2064.7,0.54102729]
[1772085990091,0.52544613,2065.5,2064.6,0.00362383]
[1772085990400,0.52544613,2065.5,2064.6,0.57194468]
[1772086007215,0.56536507,2065.8,2064.8,0.53283788]
[1772086007415,0.56536507,2065.8,2065.0,0.53283788]
[1772086007817,0.00438112,2066.2,2065.0,0.53283788]
[1772086008018,0.56536507,2066.1,2065.0,0.53283788]
[1772086011419,0.56536507,2066.1,2065.1,0.53283788]
[1772086015217,0.00438112,2066.2,2065.7,0.53283788]
[1772086015519,0.56974619,2066.2,2065.8,0.53283788]
[1772086018225,0.57181791,2066.3,2065.8,0.53283788]
[1772086018927,0.57181791,2066.3,2065.9,0.56865228]
[1772086019125,0.67181791,2067.1,2066.3,0.56865228]
[1772086019322,0.67595597,2067.1,2066.4,6.91265228]
[1772086019821,0.67595597,2067.1,2066.5,0.56865228]
[1772086020623,0.57181791,2066.5,2066.0,0.56865228]
[1772086021726,0.57181791,2066.5,2066.0,0.57323784]
[1772086024624,0.57181791,2066.3,2066.0,6.34758556]
[1772086026018,0.57181791,2066.3,2065.9,6.342]
[1772086026219,1.18067648,2066.4,2065.5,1.18067648]
[1772086026220,0.57181791,2066.1,2065.5,0.56865228]
[1772086026727,0.57181791,2066.5,2065.6,0.56865228]
[1772086026920,0.57181791,2066.5,2065.6,0.57378575]
[1772086031228,12.55166726,2067.1,2065.6,0.57378575]
[1772086031229,0.57181791,2066.6,2065.6,0.57378575]
[1772086031826,0.57181791,2067.0,2065.6,0.57378575]
[1772086032522,0.57181791,2067.0,2065.7,0.56865228]
[1772086035825,0.57181791,2067.0,2065.9,0.56865228]
[1772086036032,0.57181791,2067.0,2066.1,0.56865228]
[1772086037935,0.10413806,2067.1,2066.1,0.56865228]
[1772086038429,6.0105292,2067.9,2066.7,5.95121]
[1772086038626,0.69652152,2068.4,2067.0,1.77126725]
[1772086038627,0.58147742,2068.4,2067.0,1.77126725]
[1772086038835,0.58147742,2068.2,2067.1,6.342]
[1772086039033,0.58147742,2068.2,2067.1,6.34338258]
[1772086039534,0.58513068,2068.2,2067.2,6.342]
[1772086040032,0.58513068,2068.2,2067.2,6.34458197]
[1772086040234,0.58513068,2068.2,2067.3,0.00258197]
[1772086041733,0.57181791,2068.8,2067.6,0.56865228]
[1772086042137,0.57181791,2068.8,2067.8,0.56865228]
[1772086042432,0.57181791,2068.8,2068.0,0.56865228]
[1772086042633,0.57700083,2068.8,2068.0,0.56865228]
[1772086044836,0.00518292,2068.8,2068.0,0.56865228]
[1772086045632,0.00518292,2068.8,2067.9,1.77126725]
[1772086045633,0.57181791,2069.0,2068.2,0.56865228]
[1772086045929,0.53255882,2069.6,2068.4,0.58304048]
[1772086046335,1.73564652,2069.8,2068.8,0.58304048]
[1772086046532,1.73564652,2069.8,2069.0,0.58304048]
[1772086046736,1.20647886,2069.8,2069.0,0.58893504]
[1772086046933,0.53255882,2072.2,2069.7,0.58304048]
[1772086047135,40.8,2072.3,2069.6,7.71418725]
[1772086047136,0.53255882,2071.5,2070.1,0.58304048]
[1772086047332,0.53255882,2071.5,2070.3,0.58304048]
[1772086047734,0.53255882,2072.2,2071.3,0.58304048]
[1772086047930,0.53607818,2072.2,2071.4,6.92104048]
[1772086048334,0.53255882,2073.0,2072.1,0.58304048]
[1772086048539,0.53255882,2073.0,2071.7,6.338]
[1772086048834,0.53255882,2073.0,2071.3,5.94150477]
[1772086048835,0.53255882,2073.0,2071.9,0.58304048]
[1772086049034,0.53255882,2073.0,2072.0,6.338]
[1772086049337,0.53641159,2073.0,2072.1,0.58304048]
[1772086049535,0.53641159,2073.0,2072.0,6.336]
[1772086050039,0.53641159,2073.0,2071.9,6.336]
[1772086050241,0.53641159,2073.0,2072.0,0.58304048]
[1772086050441,0.53641159,2073.0,2072.1,6.336]
[1772086050638,0.53641159,2073.0,2071.8,0.58304048]
[1772086050938,0.53641159,2073.0,2071.6,6.91904048]
[1772086051141,0.53641159,2073.0,2071.4,0.58304048]
[1772086051338,0.53255882,2072.6,2071.4,6.335]
[1772086051637,0.53255882,2072.6,2071.5,0.58304048]
[1772086052432,0.53255882,2072.6,2071.6,6.91604048]
[1772086052839,0.53255882,2072.6,2071.7,0.58304048]
[1772086053543,0.59510381,2072.9,2072.1,0.56563654]
[1772086053745,10.32419486,2074.3,2072.3,0.56563654]
[1772086053746,0.59510381,2073.4,2072.3,0.56563654]
[1772086054038,0.59510381,2073.4,2072.4,6.89863654]
[1772086054236,0.59510381,2073.3,2072.4,6.89863654]
[1772086054432,1.19021494,2073.1,2072.5,0.56563654]
[1772086054637,0.59510381,2073.1,2072.5,0.56563654]
[1772086054832,0.59511113,2073.0,2072.5,0.56563654]
[1772086055235,0.59890401,2073.1,2072.5,0.56563654]
[1772086055440,0.59511113,2073.0,2072.6,0.56563654]
[1772086055941,0.59511113,2072.9,2072.6,0.56563654]
[1772086056544,0.18802589,2072.8,2072.6,0.56563654]
[1772086056742,0.52174274,2074.1,2073.1,0.56563654]
[1772086056941,0.52174274,2074.1,2073.3,0.56563654]
[1772086057143,0.52174274,2074.0,2073.3,0.56563654]
[1772086057437,0.52174274,2074.0,2072.8,0.2412]
[1772086057438,1.19305732,2074.3,2073.7,0.56563654]
[1772086057638,0.52187838,2074.2,2073.5,0.56563654]
[1772086057840,0.52187838,2074.2,2073.1,0.56563654]
[1772086058037,0.71613895,2074.2,2073.4,0.00591318]
[1772086058237,0.52811306,2074.2,2073.4,0.00591318]
[1772086058634,0.18802589,2073.8,2073.4,0.00591318]
[1772086058838,0.18802589,2073.8,2073.2,0.56563654]
[1772086059040,0.52437588,2074.0,2073.2,0.56563654]
[1772086059240,0.00623468,2074.2,2073.2,0.56563654]
[1772086059241,0.5337097,2074.2,2073.2,0.56563654]
[1772086059440,0.00623468,2074.2,2073.1,14.27336725]
[1772086059639,0.00623468,2074.2,2073.2,0.19810178]
[1772086059845,1.78816113,2074.3,2073.5,0.19810178]
[1772086060145,0.59510381,2074.2,2073.2,0.20245957]
[1772086060846,0.60017306,2074.2,2073.2,0.20612355]
[1772086061043,0.60017306,2074.2,2073.3,6.326]
[1772086061340,0.59510381,2074.1,2073.3,6.326]
[1772086061546,0.00506925,2074.2,2073.4,0.21120673]
[1772086061747,0.00506925,2074.2,2073.4,1.98247398]
[1772086062045,0.00506925,2074.2,2073.5,0.21294063]
[1772086063042,0.59510381,2074.0,2073.4,6.325]
[1772086063843,0.7831297,2074.0,2073.4,6.325]
[1772086064043,0.59510381,2074.0,2073.4,6.325]
[1772086064439,0.59510381,2073.7,2073.4,6.325]
[1772086064842,0.18802589,2073.6,2073.4,6.325]
[1772086065044,0.7831297,2073.6,2073.4,6.325]
[1772086065342,0.18211271,2073.6,2073.4,6.325]
[1772086065742,0.18211271,2073.5,2073.4,6.325]
[1772086065947,0.18211271,2073.5,2073.2,0.00366398]
[1772086066243,0.59510381,2074.1,2073.2,0.20955259]
[1772086067248,0.33858403,2074.3,2073.6,0.24693538]
[1772086067442,0.59510381,2074.5,2073.6,0.24693538]
[1772086067443,0.59510381,2074.5,2073.7,6.322]
[1772086067647,0.59510381,2074.4,2073.7,6.322]
[1772086068048,0.77721652,2074.4,2073.7,6.5729097]
[1772086068252,0.78296936,2074.4,2073.7,6.5729097]
[1772086068944,0.60085665,2074.4,2073.8,0.25894918]